{"text_format":"1","workbook":"xlsx","n_sheets":1,"sheets":["2020"],"not_rendered":{"charts":0,"images":0,"macros":1,"external_links":0,"defined_names":1,"comments":1,"pivot_tables":0},"unopened":[],"bounds":{"document_bytes":16777216,"sheet_cells":100000,"rows_first":2000,"rows_last":500,"rows_between":2000,"halvings":0,"cell_chars":16384,"cell_head_chars":4096},"cells_cut":0,"cells_raw":0,"read":"whole","date_system":"1900"}

{"sheet":"2020","index":0,"n_rows":45,"n_cols":28,"rows_kept":45,"cut":false,"hidden":false,"merged":[[43,6,43,12],[44,6,44,12],[7,4,7,5],[3,6,3,7],[8,4,8,5],[3,10,3,11],[6,7,6,10],[5,7,5,10]]}
[]
[]
[null,null,null,null,null,null,{"$f":"IF(Q3>20,1,2)","v":1},null,null,null,null,null,null,null,null,null,{"$f":"M4-E7","v":2020}]
[null,null,null,"Anmeldung","Liestal, Luzern",null,"Bitte Jahrgang eintragen",null,null,null,"Shooting Masters",null,2020,null,null,{"$f":"RIGHT(E8,LEN(E8)-SEARCH(\"@\",E8,1))","v":{"$error":"#VALUE!"}}]
[null,null,null,null,null,null,"Die unten angegebene Zeit ist die Startzeit zum ersten Wettkampfschuss."]
[null,null,null,"Name / Vorname","JG","Kategorie",null,"Kader (Bitte auswählen)",null,null,null,null,"Lizenz"]
[null,null,null,null,null,{"$f":"IF(Q3>20,\"ELITE\",\"JUNIOR/IN\")","v":"ELITE"},null,"kein SSV Kader"]
[null,null,null,"E-Mail Adresse"]
[null,null,null,null,null,null,"Sportpistole\n25m\n","Pistole 50m\n\n","Schnellfeuer\nPistole\n","Standard\nPistole\n","Luftpistole (60)\nMänner/Frauen\nJunior/innen",null,null,null,null,null,null,null,null,null,null,"10m(40)","10(60)","50(60)","50(60/40/40)","50(20/20/20)"]
[]
[null,null,null,"Shooting Masters",5,"18. / 19. April 2020",null,null,null,null,null,null,null,null,null,false,false,false,false,false,false,null,null,{"$f":"COUNTIF(R11:R13,TRUE)","v":0},{"$f":"COUNTIF(S11:S13,TRUE)","v":0},{"$f":"COUNTIF(T11:T13,TRUE)","v":0},null,"kein SSV Kader"]
[null,null,null,null,null,null,null,"Samstag",null,"Samstag","Samstag",{"$f":"IF(T11=FALSE,\"\",\"Sa.08:30-09:45\")","v":""},null,null,null,false,false,false,false,false,false,{"$f":"COUNTIF(P11:P14,TRUE)","v":0},{"$f":"COUNTIF(Q11:Q14,TRUE)","v":0},null,null,null,null,"Nationalkader Elite (E)"]
[null,null,null,null,null,"Luzern",null,null,null,null,null,null,null,null,null,false,false,null,null,null,false,null,null,null,null,null,null,"Nationalkader Junioren (T4)"]
[null,null,null,null,null,null,null,null,null,null,"Sonntag",{"$f":"IF(T12=FALSE,\"\",\"Sa.10:30-11:45\")","v":""},null,null,null,false,false,null,null,null,false,null,null,null,null,null,null,"Kader NWF (T3)"]
[null,null,null,null,null,null,null,null,null,null,null,null,null,null,null,null,null,null,null,null,null,null,null,null,null,null,null,"Kantonalkader/Aspiranten PISTE (T2)"]
[null,null,null,null,null,null,null,null,null,null,null,null,null,null,null,null,null,null,null,null,null,null,null,null,null,null,null,"Kantonalkader (T1)"]
[null,null,null,"Shooting Masters",6,"16. / 17. Mai 2020",null,null,null,null,null,null,null,null,null,false,false,false,false,false,false,null,null,{"$f":"COUNTIF(R17:R19,TRUE)","v":0},{"$f":"COUNTIF(S17:S19,TRUE)","v":0},{"$f":"COUNTIF(T17:T19,TRUE)","v":0}]
[null,null,null,null,null,null,null,"Samstag",null,"Samstag","Samstag",null,null,null,null,false,false,false,false,false,false,{"$f":"COUNTIF(P17:P20,TRUE)","v":0},{"$f":"COUNTIF(Q17:Q20,TRUE)","v":0}]
[null,null,null,null,null,"Liestal",null,null,null,null,null,"Junior/Innen",null,null,null,false,false,null,false,null,false]
[null,null,null,null,null,null,null,null,null,null,"Sonntag",{"$f":"IF(T18=FALSE,\"\",\"Sa. 10:30-11:45\")","v":""},null,null,null,false,false,null,false,true,false]
[null,null,null,null,null,null,null,null,null,null,null,"Junior/Innen"]
[]
[null,null,null,"Shooting Masters",7,"13. / 14. Juni 2020",null,null,null,null,null,null,null,null,null,false,false,false,false,false,false,null,null,{"$f":"COUNTIF(R23:R25,TRUE)","v":0},{"$f":"COUNTIF(S23:S25,TRUE)","v":0},{"$f":"COUNTIF(T23:T25,TRUE)","v":0}]
[null,null,null,null,null,null,null,"Samstag",null,"Samstag","Samstag",null,null,null,null,false,true,false,false,false,false,{"$f":"COUNTIF(P23:P27,TRUE)","v":0},{"$f":"COUNTIF(Q23:Q27,TRUE)","v":1}]
[null,null,null,null,null,"Liestal",null,null,null,null,null,"Junior/Innen",null,null,null,false,null,null,null,null,false]
[null,null,null,null,null,null,null,null,null,null,"Sonntag",{"$f":"IF(T24=FALSE,\"\",\"Sa. 10:30-11:45\")","v":""},null,null,null,false,null,null,null,null,false]
[null,null,null,null,null,null,null,null,null,null,null,"Junior/Innen",null,null,null,false]
[]
[null,null,null,"Shooting Masters",8,"22. - 23. August 2020",null,null,null,null,"Samstag",null,null,null,null,false,false,false,false,false,false,null,null,{"$f":"COUNTIF(R29:R31,TRUE)","v":0},{"$f":"COUNTIF(S29:S31,TRUE)","v":0},{"$f":"COUNTIF(T29:T31,TRUE)","v":0}]
[null,null,null,null,null,null,null,"Samstag",null,"Samstag",null,null,null,null,null,false,false,false,false,false,false,{"$f":"COUNTIF(P30:P32,TRUE)","v":0},{"$f":"COUNTIF(Q29:Q32,TRUE)","v":0}]
[null,null,null,null,null,"Luzern",null,null,null,null,"Sonntag",null,null,null,null,false,false,null,false,false,false]
[null,null,{"$f":"IF(V30=2,\"10m Shooting Masters zählt der Sonntag\",IF(W30=2,\"10m Shooting Masters zählt der Sonntag\",\"\"))","v":""},null,null,null,null,null,null,null,null,null,null,null,null,false,false,null,null,null,false]
[null,null,null,null,null,null,"      Final 14:00 Uhr",null,null,null,null,"Final 12:30/13:30"]
[]
[null,null,null,"Shooting Masters",6,"22. / 23. August 2009",null,null,null,null,null,null,null,null,null,false,false,false,false,false]
[null,null,null,null,null,{"$f":"IF(Q36=FALSE,\"\",\"Samstag   09:00 - 10:45\")","v":""},null,null,null,{"$f":"IF(R35=FALSE,\"\",\"Sa. 15:30-16:45\")","v":""},{"$f":"IF(S35=FALSE,\"\",\"So. 11:10-15:00\")","v":""},{"$f":"IF(T35=FALSE,\"\",\"So. 08:30-10:45\")","v":""},null,null,null,false,false,null,false]
[null,null,null,null,null,{"$f":"IF(P36=FALSE,\"\",\"Samstag   11:15 - 12:30\")","v":""},null,null,null,null,null,null,null,null,null,false,false]
[null,null,null,null,null,{"$f":"IF(AND(Q37=FALSE,P37=FALSE),\"\",\"Samstag   13:00 - 14:15/14:45\")","v":""},null,null,null,null,{"$f":"IF(S36=FALSE,\"\",\"Junioren\")","v":""},null,null,null,null,false,false]
[null,null,null,null,null,{"$f":"IF(AND(Q38=FALSE,P38=FALSE),\"\",\"Samstag   15:15 - 16:30/17:00\")","v":""},null,null,null,null,{"$f":"IF(S36=FALSE,\"\",\"Sa. 14:00-17:50\")","v":""}]
[]
[]
[null,null,null,"Meldetermin","Montag 20:00 Uhr vor dem Shooting Masters"]
[]
[null,null,null,null,null,"Bemerkungen / Wünsche"]
[null,null,null,"paul.gertsch@bluewin.ch"]